[Event "Titled Tuesday Blitz October 11 Early 2022"]
[White "Ambartsumova, Karina"]
[Black "Carbone, Diego"]
[WhiteFideId "4166299"]
[BlackFideId "3002179"]
[WhiteElo "2299"]
[BlackElo "2243"]
[Result "1-0"]
[Round "06"]
[TimeControl "180+1"]
[Date "2022.10.12"]
[WhiteClock "0:02:03"]
[BlackClock "0:01:16"]

1. Nf3 {[%clk 0:03:00]}  c5 {[%clk 0:02:57]} 2. c4 {[%clk 0:03:01]}  g6 {[%clk 0:02:52]} 3. d4 {[%clk 0:03:00]}  cxd4 {[%clk 0:02:51]} 4. Nxd4 {[%clk 0:03:01]}  Bg7 {[%clk 0:02:50]} 5. e4 {[%clk 0:03:01]}  Nc6 {[%clk 0:02:49]} 6. Nc2 {[%clk 0:03:02]}  d6 {[%clk 0:02:48]} 7. Be2 {[%clk 0:03:02]}  Nf6 {[%clk 0:02:39]} 8. Nc3 {[%clk 0:03:02]}  O-O {[%clk 0:02:39]} 9. O-O {[%clk 0:03:02]}  Nd7 {[%clk 0:02:39]} 10. Bd2 {[%clk 0:03:02]}  b6 {[%clk 0:02:39]} 11. f4 {[%clk 0:02:54]}  Bb7 {[%clk 0:02:38]} 12. Bf3 {[%clk 0:02:55]}  Nd4 {[%clk 0:02:32]} 13. Nxd4 {[%clk 0:02:48]}  Bxd4+ {[%clk 0:02:33]} 14. Kh1 {[%clk 0:02:49]}  Nc5 {[%clk 0:02:28]} 15. Qe2 {[%clk 0:02:46]}  a5 {[%clk 0:02:22]} 16. f5 {[%clk 0:02:41]}  Nd7 {[%clk 0:02:11]} 17. Rad1 {[%clk 0:02:40]}  Bg7 {[%clk 0:02:05]} 18. Nd5 {[%clk 0:02:37]}  Bxd5 {[%clk 0:02:04]} 19. exd5 {[%clk 0:02:38]}  Nc5 {[%clk 0:02:00]} 20. Bg5 {[%clk 0:02:29]}  Re8 {[%clk 0:01:57]} 21. Bg4 {[%clk 0:02:25]}  a4 {[%clk 0:01:47]} 22. fxg6 {[%clk 0:02:23]}  hxg6 {[%clk 0:01:47]} 23. Rxf7 {[%clk 0:02:18]}  Kxf7 {[%clk 0:01:37]} 24. Be6+ {[%clk 0:02:08]}  Kf8 {[%clk 0:01:15]} 25. Rf1+ {[%clk 0:02:04]}  Bf6 {[%clk 0:01:16]} 26. Bh6# {[%clk 0:02:03]} 1-0


[Site "https://www.chess.com"]

[Event "Titled Tuesday Blitz October 11 Early 2022"]
[White "Atanasov, Anthony"]
[Black "Luxama, Jacques Muller"]
[WhiteFideId "2623897"]
[BlackFideId "11900113"]
[WhiteElo "2048"]
[BlackElo "1931"]
[Result "1-0"]
[Round "06"]
[TimeControl "180+1"]
[Date "2022.10.12"]
[WhiteClock "0:01:33"]
[BlackClock "0:00:04"]

1. e4 {[%clk 0:03:00]}  c5 {[%clk 0:02:59]} 2. Nf3 {[%clk 0:02:59]}  d6 {[%clk 0:02:59]} 3. d4 {[%clk 0:02:58]}  cxd4 {[%clk 0:02:59]} 4. Nxd4 {[%clk 0:02:59]}  Nf6 {[%clk 0:02:59]} 5. Nc3 {[%clk 0:02:59]}  a6 {[%clk 0:02:59]} 6. Nb3 {[%clk 0:02:54]}  b5 {[%clk 0:02:48]} 7. a4 {[%clk 0:02:47]}  b4 {[%clk 0:02:48]} 8. Nd5 {[%clk 0:02:46]}  Nc6 {[%clk 0:02:31]} 9. Be3 {[%clk 0:02:39]}  Nxd5 {[%clk 0:02:26]} 10. exd5 {[%clk 0:02:34]}  Ne5 {[%clk 0:02:24]} 11. Qd4 {[%clk 0:02:30]}  Bb7 {[%clk 0:02:12]} 12. Be2 {[%clk 0:02:13]}  Rc8 {[%clk 0:01:56]} 13. Qa7 {[%clk 0:02:03]}  Bxd5 {[%clk 0:01:49]} 14. Bxa6 {[%clk 0:02:00]}  Rxc2 {[%clk 0:01:39]} 15. Bb6 {[%clk 0:02:00]}  Bxg2 {[%clk 0:00:21]} 16. Bxd8 {[%clk 0:01:48]}  Kxd8 {[%clk 0:00:22]} 17. Nd4 {[%clk 0:01:45]}  Nf3+ {[%clk 0:00:18]} 18. Nxf3 {[%clk 0:01:44]}  Bxf3 {[%clk 0:00:17]} 19. Qb6+ {[%clk 0:01:41]}  Kd7 {[%clk 0:00:16]} 20. Bb5+ {[%clk 0:01:41]}  Kc8 {[%clk 0:00:10]} 21. O-O {[%clk 0:01:36]}  Rc5 {[%clk 0:00:05]} 22. Rac1 {[%clk 0:01:34]}  e6 {[%clk 0:00:03]} 23. Rxc5+ {[%clk 0:01:34]}  dxc5 {[%clk 0:00:04]} 24. Rc1 {[%clk 0:01:33]}  Be7 {[%clk 0:00:04]} 25. Rxc5+ {[%clk 0:01:30]}  Bxc5 {[%clk 0:00:03]} 26. Qxc5+ {[%clk 0:01:30]}  Kd8 {[%clk 0:00:04]} 27. Qd6+ {[%clk 0:01:31]}  Kc8 {[%clk 0:00:02]} 28. Ba6+ {[%clk 0:01:32]}  Bb7 {[%clk 0:00:01]} 29. Qc6+ {[%clk 0:01:32]}  Kd8 {[%clk 0:00:01]} 30. Bxb7 {[%clk 0:01:33]}  Ke7 {[%clk 0:00:01]} 31. Qc7+ {[%clk 0:01:33]}  Kf6 {[%clk 0:00:01]} 32. f4 {[%clk 0:01:33]}  Kg6 {[%clk 0:00:02]} 33. Qe5 {[%clk 0:01:31]}  f5 {[%clk 0:00:03]} 34. Qxe6+ {[%clk 0:01:31]}  Kh5 {[%clk 0:00:03]} 35. Qxf5+ {[%clk 0:01:32]}  Kh6 {[%clk 0:00:04]} 36. Qg5# {[%clk 0:01:33]} 1-0


[Site "https://www.chess.com"]

[Event "Titled Tuesday Blitz October 11 Early 2022"]
[White "Barria Zuniga, Daniel"]
[Black "Aaditya Dhingra"]
[WhiteFideId "3400816"]
[BlackFideId "25678191"]
[WhiteElo "2414"]
[BlackElo "2054"]
[Result "1-0"]
[Round "06"]
[TimeControl "180+1"]
[Date "2022.10.12"]
[WhiteClock "0:00:04"]
[BlackClock "0:00:02"]

1. d4 {[%clk 0:02:39]}  Nf6 {[%clk 0:02:53]} 2. c4 {[%clk 0:02:38]}  c6 {[%clk 0:02:52]} 3. Nf3 {[%clk 0:02:36]}  d5 {[%clk 0:02:52]} 4. Nc3 {[%clk 0:02:36]}  e6 {[%clk 0:02:52]} 5. Bg5 {[%clk 0:02:35]}  Be7 {[%clk 0:02:51]} 6. e3 {[%clk 0:02:35]}  Nbd7 {[%clk 0:02:48]} 7. Qc2 {[%clk 0:02:34]}  h6 {[%clk 0:02:44]} 8. Bxf6 {[%clk 0:02:30]}  Nxf6 {[%clk 0:02:43]} 9. O-O-O {[%clk 0:02:31]}  Qa5 {[%clk 0:02:39]} 10. Kb1 {[%clk 0:02:30]}  Bb4 {[%clk 0:02:36]} 11. Ne5 {[%clk 0:02:22]}  Bxc3 {[%clk 0:02:35]} 12. bxc3 {[%clk 0:02:21]}  Ne4 {[%clk 0:02:32]} 13. Rc1 {[%clk 0:02:20]}  Bd7 {[%clk 0:02:12]} 14. Bd3 {[%clk 0:02:14]}  Nd6 {[%clk 0:02:10]} 15. Ka1 {[%clk 0:02:10]}  f6 {[%clk 0:01:59]} 16. Ng6 {[%clk 0:01:53]}  Rg8 {[%clk 0:01:58]} 17. c5 {[%clk 0:01:50]}  Nb5 {[%clk 0:01:52]} 18. e4 {[%clk 0:01:46]}  dxe4 {[%clk 0:01:44]} 19. Bxe4 {[%clk 0:01:45]}  b6 {[%clk 0:01:40]} 20. Qb3 {[%clk 0:01:37]}  Nc7 {[%clk 0:01:06]} 21. Qb4 {[%clk 0:01:18]}  Qxb4 {[%clk 0:00:57]} 22. cxb4 {[%clk 0:01:19]}  b5 {[%clk 0:00:56]} 23. Kb2 {[%clk 0:01:17]}  a5 {[%clk 0:00:55]} 24. a3 {[%clk 0:01:16]}  axb4 {[%clk 0:00:55]} 25. axb4 {[%clk 0:01:16]}  Ra4 {[%clk 0:00:55]} 26. Kb3 {[%clk 0:01:10]}  Na6 {[%clk 0:00:54]} 27. Ra1 {[%clk 0:01:08]}  Rxb4+ {[%clk 0:00:53]} 28. Kc3 {[%clk 0:01:08]}  Rc4+ {[%clk 0:00:52]} 29. Kd3 {[%clk 0:01:07]}  Nb4+ {[%clk 0:00:52]} 30. Ke3 {[%clk 0:01:06]}  Nd5+ {[%clk 0:00:39]} 31. Bxd5 {[%clk 0:01:03]}  exd5 {[%clk 0:00:39]} 32. Ra7 {[%clk 0:00:58]}  Kf7 {[%clk 0:00:37]} 33. Rxd7+ {[%clk 0:00:46]}  Kxg6 {[%clk 0:00:36]} 34. Rd6 {[%clk 0:00:41]}  Re8+ {[%clk 0:00:35]} 35. Kd3 {[%clk 0:00:41]}  Re4 {[%clk 0:00:31]} 36. Rxc6 {[%clk 0:00:41]}  Rcxd4+ {[%clk 0:00:22]} 37. Kc3 {[%clk 0:00:40]}  Rc4+ {[%clk 0:00:21]} 38. Kd3 {[%clk 0:00:41]}  b4 {[%clk 0:00:19]} 39. Rb1 {[%clk 0:00:39]}  Rc3+ {[%clk 0:00:18]} 40. Kd2 {[%clk 0:00:38]}  Rd4+ {[%clk 0:00:19]} 41. Ke1 {[%clk 0:00:35]}  Rdc4 {[%clk 0:00:17]} 42. Rb6 {[%clk 0:00:33]}  Rc1+ {[%clk 0:00:16]} 43. Rxc1 {[%clk 0:00:32]}  Rxc1+ {[%clk 0:00:17]} 44. Kd2 {[%clk 0:00:33]}  Rxc5 {[%clk 0:00:17]} 45. Rxb4 {[%clk 0:00:34]}  Kf5 {[%clk 0:00:15]} 46. h3 {[%clk 0:00:29]}  g5 {[%clk 0:00:14]} 47. g4+ {[%clk 0:00:25]}  Ke5 {[%clk 0:00:13]} 48. Rb8 {[%clk 0:00:24]}  Rc4 {[%clk 0:00:04]} 49. Rh8 {[%clk 0:00:22]}  d4 {[%clk 0:00:03]} 50. Rxh6 {[%clk 0:00:21]}  Ra4 {[%clk 0:00:03]} 51. h4 {[%clk 0:00:21]}  Ra2+ {[%clk 0:00:03]} 52. Kd3 {[%clk 0:00:20]}  gxh4 {[%clk 0:00:02]} 53. f3 {[%clk 0:00:14]}  Ra3+ {[%clk 0:00:02]} 54. Ke2 {[%clk 0:00:14]}  Ra2+ {[%clk 0:00:03]} 55. Kf1 {[%clk 0:00:13]}  Kf4 {[%clk 0:00:02]} 56. Rxf6+ {[%clk 0:00:13]}  Kg3 {[%clk 0:00:03]} 57. g5 {[%clk 0:00:10]}  h3 {[%clk 0:00:03]} 58. Rh6 {[%clk 0:00:07]}  h2 {[%clk 0:00:03]} 59. g6 {[%clk 0:00:06]}  h1=Q+ {[%clk 0:00:03]} 60. Rxh1 {[%clk 0:00:04]}  Ra1+ {[%clk 0:00:02]} 61. Ke2 {[%clk 0:00:05]}  Rxh1 {[%clk 0:00:03]} 62. g7 {[%clk 0:00:06]}  Rh2+ {[%clk 0:00:02]} 63. Kd1 {[%clk 0:00:04]}  Kxf3 {[%clk 0:00:02]} 64. g8=Q {[%clk 0:00:04]}  Rg2 {[%clk 0:00:02]} 65. Qd5+ {[%clk 0:00:03]}  Kf2 {[%clk 0:00:02]} 66. Qxd4+ {[%clk 0:00:03]}  Kg3 {[%clk 0:00:02]} 67. Qe5+ {[%clk 0:00:03]}  Kf3 {[%clk 0:00:02]} 68. Ke1 {[%clk 0:00:03]}  Rg1+ {[%clk 0:00:01]} 69. Kd2 {[%clk 0:00:03]}  Rg2+ {[%clk 0:00:02]} 70. Kd3 {[%clk 0:00:04]}  Rg3 {[%clk 0:00:02]} 71. Qe4+ {[%clk 0:00:04]}  Kf2+ {[%clk 0:00:02]} 72. Kd2 {[%clk 0:00:04]}  Rf3 {[%clk 0:00:02]} 73. Qh4+ {[%clk 0:00:04]}  Rg3 {[%clk 0:00:01]} 74. Kd1 {[%clk 0:00:04]}  Kg2 {[%clk 0:00:02]} 75. Qe4+ {[%clk 0:00:04]}  Rf3 {[%clk 0:00:02]} 76. Ke2 {[%clk 0:00:04]}  Kh2 {[%clk 0:00:02]} 77. Kxf3 {[%clk 0:00:04]} 1-0


[Site "https://www.chess.com"]

[Event "Titled Tuesday Blitz October 11 Early 2022"]
[White "Bilan, Danila"]
[Black "Ardila, Oscar Humberto"]
[WhiteFideId "24161918"]
[BlackFideId "4404742"]
[WhiteElo "2203"]
[BlackElo "1898"]
[Result "1-0"]
[Round "06"]
[TimeControl "180+1"]
[Date "2022.10.12"]
[WhiteClock "0:00:43"]
[BlackClock "0:00:23"]

1. d4 {[%clk 0:03:00]}  Nf6 {[%clk 0:02:59]} 2. Nf3 {[%clk 0:03:00]}  e6 {[%clk 0:02:59]} 3. g3 {[%clk 0:03:00]}  Bb4+ {[%clk 0:02:58]} 4. c3 {[%clk 0:02:59]}  Be7 {[%clk 0:02:58]} 5. Bg2 {[%clk 0:03:00]}  O-O {[%clk 0:02:58]} 6. O-O {[%clk 0:03:00]}  d6 {[%clk 0:02:58]} 7. c4 {[%clk 0:02:58]}  Nbd7 {[%clk 0:02:59]} 8. Nc3 {[%clk 0:02:58]}  c6 {[%clk 0:02:58]} 9. Qc2 {[%clk 0:02:54]}  Qc7 {[%clk 0:02:58]} 10. Rd1 {[%clk 0:02:47]}  e5 {[%clk 0:02:57]} 11. b3 {[%clk 0:02:44]}  Re8 {[%clk 0:02:54]} 12. h3 {[%clk 0:02:42]}  Nf8 {[%clk 0:02:53]} 13. dxe5 {[%clk 0:02:32]}  dxe5 {[%clk 0:02:53]} 14. e4 {[%clk 0:02:29]}  Be6 {[%clk 0:02:45]} 15. Be3 {[%clk 0:02:27]}  Rad8 {[%clk 0:02:43]} 16. c5 {[%clk 0:02:13]}  Ng6 {[%clk 0:02:28]} 17. b4 {[%clk 0:02:03]}  Qc8 {[%clk 0:02:28]} 18. Kh2 {[%clk 0:02:02]}  Rxd1 {[%clk 0:02:28]} 19. Rxd1 {[%clk 0:02:01]}  Rd8 {[%clk 0:02:29]} 20. a3 {[%clk 0:01:47]}  h6 {[%clk 0:02:09]} 21. Rxd8+ {[%clk 0:01:37]}  Qxd8 {[%clk 0:02:08]} 22. Na4 {[%clk 0:01:38]}  h5 {[%clk 0:01:11]} 23. Ng5 {[%clk 0:01:16]}  Bc8 {[%clk 0:01:10]} 24. Bf1 {[%clk 0:01:07]}  Nh7 {[%clk 0:01:02]} 25. Nxh7 {[%clk 0:00:51]}  Kxh7 {[%clk 0:01:03]} 26. Bc4 {[%clk 0:00:52]}  f6 {[%clk 0:00:52]} 27. Qe2 {[%clk 0:00:49]}  Bg4 {[%clk 0:00:24]} 28. hxg4 {[%clk 0:00:46]}  h4 {[%clk 0:00:23]} 29. g5 {[%clk 0:00:43]} 1-0


[Site "https://www.chess.com"]

[Event "Titled Tuesday Blitz October 11 Early 2022"]
[White "Bluebaum, Matthias"]
[Black "Azarov, Sergei"]
[WhiteFideId "24651516"]
[BlackFideId "13501470"]
[WhiteElo "2633"]
[BlackElo "2494"]
[Result "1-0"]
[Round "06"]
[TimeControl "180+1"]
[Date "2022.10.11"]
[WhiteClock "0:00:20"]
[BlackClock "0:00:03"]

1. d4 {[%clk 0:03:00]}  Nf6 {[%clk 0:02:59]} 2. c4 {[%clk 0:03:01]}  e6 {[%clk 0:02:59]} 3. Nc3 {[%clk 0:03:01]}  Bb4 {[%clk 0:02:59]} 4. e3 {[%clk 0:03:02]}  O-O {[%clk 0:02:58]} 5. Bd2 {[%clk 0:03:03]}  c5 {[%clk 0:02:57]} 6. a3 {[%clk 0:03:02]}  Bxc3 {[%clk 0:02:57]} 7. Bxc3 {[%clk 0:03:03]}  Ne4 {[%clk 0:02:57]} 8. Ne2 {[%clk 0:03:04]}  b6 {[%clk 0:02:50]} 9. d5 {[%clk 0:03:03]}  Nxc3 {[%clk 0:02:47]} 10. Nxc3 {[%clk 0:03:04]}  e5 {[%clk 0:02:41]} 11. d6 {[%clk 0:02:57]}  Nc6 {[%clk 0:02:36]} 12. Be2 {[%clk 0:02:54]}  Bb7 {[%clk 0:02:35]} 13. Bf3 {[%clk 0:02:54]}  f5 {[%clk 0:02:29]} 14. Bd5+ {[%clk 0:02:54]}  Kh8 {[%clk 0:02:28]} 15. O-O {[%clk 0:02:55]}  Qf6 {[%clk 0:02:23]} 16. Qd2 {[%clk 0:02:12]}  Qxd6 {[%clk 0:02:14]} 17. Rad1 {[%clk 0:02:11]}  Qg6 {[%clk 0:02:05]} 18. f4 {[%clk 0:02:06]}  Rae8 {[%clk 0:01:35]} 19. Rf3 {[%clk 0:02:01]}  exf4 {[%clk 0:01:28]} 20. exf4 {[%clk 0:02:00]}  Qf6 {[%clk 0:01:18]} 21. Rd3 {[%clk 0:01:55]}  Ba8 {[%clk 0:01:14]} 22. Nb5 {[%clk 0:01:50]}  h6 {[%clk 0:00:58]} 23. Bf3 {[%clk 0:01:45]}  Re7 {[%clk 0:00:51]} 24. Nc7 {[%clk 0:01:41]}  Nd4 {[%clk 0:00:38]} 25. Rxd4 {[%clk 0:01:10]}  Bxf3 {[%clk 0:00:35]} 26. Rd6 {[%clk 0:01:10]}  Qf7 {[%clk 0:00:12]} 27. gxf3 {[%clk 0:01:09]}  Qxc4 {[%clk 0:00:13]} 28. Qd3 {[%clk 0:01:04]}  Qxf4 {[%clk 0:00:11]} 29. Qf1 {[%clk 0:00:41]}  Re5 {[%clk 0:00:09]} 30. Nd5 {[%clk 0:00:36]}  Qg5+ {[%clk 0:00:08]} 31. Kh1 {[%clk 0:00:37]}  Qh4 {[%clk 0:00:04]} 32. Nc7 {[%clk 0:00:26]}  Rf6 {[%clk 0:00:03]} 33. Rxf6 {[%clk 0:00:24]}  Qxf6 {[%clk 0:00:03]} 34. Rxd7 {[%clk 0:00:21]}  Re3 {[%clk 0:00:03]} 35. Nd5 {[%clk 0:00:20]} 1-0


[Site "https://www.chess.com"]

[Event "Titled Tuesday Blitz October 11 Early 2022"]
[White "Bortnyk, Olexandr"]
[Black "Makhnev, Denis"]
[WhiteFideId "14120828"]
[BlackFideId "13707647"]
[WhiteElo "2723"]
[BlackElo "2486"]
[Result "0-1"]
[Round "06"]
[TimeControl "180+1"]
[Date "2022.10.11"]
[WhiteClock "0:00:07"]
[BlackClock "0:00:05"]

1. e4 {[%clk 0:03:00]}  e5 {[%clk 0:02:59]} 2. Nf3 {[%clk 0:03:00]}  Nc6 {[%clk 0:03:00]} 3. Bb5 {[%clk 0:03:00]}  a6 {[%clk 0:03:00]} 4. Ba4 {[%clk 0:03:00]}  d6 {[%clk 0:03:01]} 5. h3 {[%clk 0:02:58]}  Bd7 {[%clk 0:03:01]} 6. c3 {[%clk 0:02:58]}  Nf6 {[%clk 0:02:58]} 7. O-O {[%clk 0:02:54]}  g6 {[%clk 0:02:54]} 8. Re1 {[%clk 0:02:49]}  Bg7 {[%clk 0:02:55]} 9. d4 {[%clk 0:02:49]}  O-O {[%clk 0:02:55]} 10. dxe5 {[%clk 0:02:42]}  Nxe5 {[%clk 0:02:54]} 11. Nxe5 {[%clk 0:02:38]}  dxe5 {[%clk 0:02:55]} 12. Bg5 {[%clk 0:02:36]}  Be6 {[%clk 0:02:48]} 13. Nd2 {[%clk 0:02:33]}  Qe7 {[%clk 0:02:41]} 14. Qe2 {[%clk 0:02:23]}  h6 {[%clk 0:02:39]} 15. Bh4 {[%clk 0:02:23]}  b5 {[%clk 0:02:30]} 16. Bb3 {[%clk 0:02:22]}  c5 {[%clk 0:02:30]} 17. c4 {[%clk 0:02:07]}  Rab8 {[%clk 0:01:50]} 18. Rac1 {[%clk 0:02:04]}  Rfc8 {[%clk 0:01:49]} 19. Nf1 {[%clk 0:01:56]}  Qf8 {[%clk 0:01:04]} 20. Qf3 {[%clk 0:01:18]}  Nh7 {[%clk 0:00:43]} 21. Ne3 {[%clk 0:01:17]}  Ng5 {[%clk 0:00:43]} 22. Bxg5 {[%clk 0:01:17]}  hxg5 {[%clk 0:00:43]} 23. cxb5 {[%clk 0:01:15]}  Bxb3 {[%clk 0:00:42]} 24. axb3 {[%clk 0:01:16]}  axb5 {[%clk 0:00:39]} 25. Red1 {[%clk 0:01:16]}  Rb7 {[%clk 0:00:32]} 26. Qg4 {[%clk 0:01:15]}  Bf6 {[%clk 0:00:31]} 27. Nd5 {[%clk 0:01:14]}  Kg7 {[%clk 0:00:30]} 28. Rd3 {[%clk 0:01:09]}  Rc6 {[%clk 0:00:24]} 29. Rcd1 {[%clk 0:00:59]}  c4 {[%clk 0:00:22]} 30. Rc3 {[%clk 0:00:52]}  Bd8 {[%clk 0:00:21]} 31. Rdc1 {[%clk 0:00:47]}  Rd6 {[%clk 0:00:15]} 32. Qc8 {[%clk 0:00:41]}  Ra7 {[%clk 0:00:10]} 33. bxc4 {[%clk 0:00:39]}  bxc4 {[%clk 0:00:11]} 34. Rxc4 {[%clk 0:00:36]}  f5 {[%clk 0:00:12]} 35. Qc5 {[%clk 0:00:25]}  Rad7 {[%clk 0:00:11]} 36. Ne3 {[%clk 0:00:17]}  Qf6 {[%clk 0:00:11]} 37. b4 {[%clk 0:00:16]}  Bb6 {[%clk 0:00:11]} 38. Qb5 {[%clk 0:00:12]}  g4 {[%clk 0:00:11]} 39. Nd5 {[%clk 0:00:11]}  Qe6 {[%clk 0:00:09]} 40. Rc6 {[%clk 0:00:11]}  Bd4 {[%clk 0:00:08]} 41. Rxd6 {[%clk 0:00:11]}  Qxd6 {[%clk 0:00:08]} 42. Qxd7+ {[%clk 0:00:10]}  Qxd7 {[%clk 0:00:08]} 43. Rc7 {[%clk 0:00:11]}  Qxc7 {[%clk 0:00:09]} 44. Nxc7 {[%clk 0:00:12]}  g3 {[%clk 0:00:10]} 45. Ne6+ {[%clk 0:00:10]}  Kf6 {[%clk 0:00:08]} 46. exf5 {[%clk 0:00:03]}  gxf5 {[%clk 0:00:07]} 47. Kf1 {[%clk 0:00:04]}  Kxe6 {[%clk 0:00:07]} 48. fxg3 {[%clk 0:00:04]}  Kd5 {[%clk 0:00:07]} 49. Ke2 {[%clk 0:00:03]}  e4 {[%clk 0:00:07]} 50. g4 {[%clk 0:00:03]}  f4 {[%clk 0:00:07]} 51. g5 {[%clk 0:00:02]}  Ke6 {[%clk 0:00:06]} 52. h4 {[%clk 0:00:02]}  Kf5 {[%clk 0:00:07]} 53. b5 {[%clk 0:00:03]}  Kg6 {[%clk 0:00:06]} 54. Kd2 {[%clk 0:00:03]}  Kh5 {[%clk 0:00:06]} 55. Ke2 {[%clk 0:00:04]}  Bb6 {[%clk 0:00:06]} 56. Kf1 {[%clk 0:00:03]}  Bc5 {[%clk 0:00:04]} 57. Ke2 {[%clk 0:00:02]}  Bd4 {[%clk 0:00:04]} 58. Kf1 {[%clk 0:00:03]}  Kxh4 {[%clk 0:00:04]} 59. g6 {[%clk 0:00:03]}  Kg5 {[%clk 0:00:04]} 60. b6 {[%clk 0:00:04]}  Kxg6 {[%clk 0:00:04]} 61. b7 {[%clk 0:00:04]}  Be5 {[%clk 0:00:04]} 62. g3 {[%clk 0:00:05]}  f3 {[%clk 0:00:04]} 63. Kf2 {[%clk 0:00:06]}  Kf5 {[%clk 0:00:04]} 64. Ke3 {[%clk 0:00:07]}  Bxg3 {[%clk 0:00:05]} 0-1


[Site "https://www.chess.com"]

[Event "Titled Tuesday Blitz October 11 Early 2022"]
[White "Buscar, Michael"]
[Black "Smietanska, Wiktoria"]
[WhiteFideId "2603616"]
[BlackFideId "21869359"]
[WhiteElo "2010"]
[BlackElo "1854"]
[Result "1-0"]
[Round "06"]
[TimeControl "180+1"]
[Date "2022.10.12"]
[WhiteClock "0:00:11"]
[BlackClock "0:00:04"]

1. Nf3 {[%clk 0:02:11]}  Nf6 {[%clk 0:02:56]} 2. b3 {[%clk 0:02:12]}  g6 {[%clk 0:02:56]} 3. Bb2 {[%clk 0:02:12]}  Bg7 {[%clk 0:02:56]} 4. h4 {[%clk 0:02:12]}  h5 {[%clk 0:02:56]} 5. g3 {[%clk 0:02:12]}  O-O {[%clk 0:02:56]} 6. Bg2 {[%clk 0:02:12]}  d6 {[%clk 0:02:56]} 7. d3 {[%clk 0:02:10]}  e5 {[%clk 0:02:56]} 8. Nbd2 {[%clk 0:02:09]}  Nc6 {[%clk 0:02:57]} 9. c4 {[%clk 0:02:10]}  Be6 {[%clk 0:02:56]} 10. Ng5 {[%clk 0:02:10]}  Bf5 {[%clk 0:02:54]} 11. e4 {[%clk 0:02:09]}  Bg4 {[%clk 0:02:48]} 12. f3 {[%clk 0:02:09]}  Bd7 {[%clk 0:02:48]} 13. Nf1 {[%clk 0:02:09]}  Nh7 {[%clk 0:02:46]} 14. Nxh7 {[%clk 0:02:08]}  Kxh7 {[%clk 0:02:47]} 15. Ne3 {[%clk 0:02:08]}  f5 {[%clk 0:02:45]} 16. exf5 {[%clk 0:02:00]}  Bxf5 {[%clk 0:02:42]} 17. Nxf5 {[%clk 0:01:59]}  Rxf5 {[%clk 0:02:38]} 18. g4 {[%clk 0:01:58]}  Rf7 {[%clk 0:02:25]} 19. gxh5 {[%clk 0:01:57]}  gxh5 {[%clk 0:02:24]} 20. f4 {[%clk 0:01:58]}  Kh6 {[%clk 0:01:45]} 21. fxe5 {[%clk 0:01:49]}  Bxe5 {[%clk 0:01:33]} 22. Qd2+ {[%clk 0:01:42]}  Bf4 {[%clk 0:01:33]} 23. Qc3 {[%clk 0:01:40]}  Qe7+ {[%clk 0:01:25]} 24. Kd1 {[%clk 0:01:40]}  Re8 {[%clk 0:01:23]} 25. Be4 {[%clk 0:01:39]}  Ne5 {[%clk 0:01:16]} 26. Bc1 {[%clk 0:01:36]}  Qe6 {[%clk 0:01:12]} 27. Kc2 {[%clk 0:01:31]}  Qg4 {[%clk 0:01:03]} 28. Kb2 {[%clk 0:01:27]}  Qe2+ {[%clk 0:00:58]} 29. Ka3 {[%clk 0:01:27]}  Ref8 {[%clk 0:00:36]} 30. Bxf4+ {[%clk 0:01:07]}  Rxf4 {[%clk 0:00:36]} 31. Rae1 {[%clk 0:01:07]}  Qf2 {[%clk 0:00:33]} 32. Bxb7 {[%clk 0:00:59]}  Qc5+ {[%clk 0:00:28]} 33. b4 {[%clk 0:00:56]}  Qb6 {[%clk 0:00:27]} 34. Be4 {[%clk 0:00:54]}  c5 {[%clk 0:00:22]} 35. b5 {[%clk 0:00:51]}  a6 {[%clk 0:00:21]} 36. Rb1 {[%clk 0:00:50]}  Rf2 {[%clk 0:00:16]} 37. Qc1+ {[%clk 0:00:47]}  R8f4 {[%clk 0:00:13]} 38. Qc3 {[%clk 0:00:30]}  axb5 {[%clk 0:00:13]} 39. Rxb5 {[%clk 0:00:29]}  Qa6+ {[%clk 0:00:10]} 40. Qa5 {[%clk 0:00:29]}  Qc8 {[%clk 0:00:08]} 41. Qb6 {[%clk 0:00:21]}  Rf6 {[%clk 0:00:07]} 42. Rg1 {[%clk 0:00:19]}  Qf8 {[%clk 0:00:04]} 43. Qa7 {[%clk 0:00:16]}  Rf7 {[%clk 0:00:03]} 44. Rb7 {[%clk 0:00:14]}  R2f6 {[%clk 0:00:03]} 45. Rxf7 {[%clk 0:00:14]}  Rxf7 {[%clk 0:00:03]} 46. Qb6 {[%clk 0:00:13]}  Rf6 {[%clk 0:00:03]} 47. Kb3 {[%clk 0:00:14]}  Qe7 {[%clk 0:00:02]} 48. a4 {[%clk 0:00:13]}  d5 {[%clk 0:00:02]} 49. Qb8 {[%clk 0:00:06]}  dxe4 {[%clk 0:00:02]} 50. dxe4 {[%clk 0:00:07]}  Rf3+ {[%clk 0:00:02]} 51. Kc2 {[%clk 0:00:07]}  Nxc4 {[%clk 0:00:02]} 52. Qh8+ {[%clk 0:00:06]}  Qh7 {[%clk 0:00:02]} 53. Qxh7+ {[%clk 0:00:06]}  Kxh7 {[%clk 0:00:03]} 54. Rg5 {[%clk 0:00:07]}  Nd6 {[%clk 0:00:03]} 55. Rxh5+ {[%clk 0:00:07]}  Kg6 {[%clk 0:00:03]} 56. Rxc5 {[%clk 0:00:07]}  Kf6 {[%clk 0:00:03]} 57. e5+ {[%clk 0:00:07]}  Ke6 {[%clk 0:00:03]} 58. exd6 {[%clk 0:00:07]}  Kxd6 {[%clk 0:00:04]} 59. Rg5 {[%clk 0:00:05]}  Rh3 {[%clk 0:00:04]} 60. h5 {[%clk 0:00:05]}  Rh4 {[%clk 0:00:04]} 61. a5 {[%clk 0:00:06]}  Kc6 {[%clk 0:00:04]} 62. Kd3 {[%clk 0:00:06]}  Kb7 {[%clk 0:00:04]} 63. Ke3 {[%clk 0:00:06]}  Ka6 {[%clk 0:00:05]} 64. Kf3 {[%clk 0:00:07]}  Rh1 {[%clk 0:00:05]} 65. Kg3 {[%clk 0:00:07]}  Rg1+ {[%clk 0:00:05]} 66. Kf4 {[%clk 0:00:07]}  Rf1+ {[%clk 0:00:05]} 67. Ke5 {[%clk 0:00:08]}  Kxa5 {[%clk 0:00:05]} 68. Ke6+ {[%clk 0:00:08]}  Kb6 {[%clk 0:00:05]} 69. Rf5 {[%clk 0:00:08]}  Rh1 {[%clk 0:00:05]} 70. Kf6 {[%clk 0:00:09]}  Kc7 {[%clk 0:00:05]} 71. Kg7 {[%clk 0:00:09]}  Kd7 {[%clk 0:00:05]} 72. Rg5 {[%clk 0:00:09]}  Ke7 {[%clk 0:00:05]} 73. h6 {[%clk 0:00:10]}  Ke6 {[%clk 0:00:04]} 74. h7 {[%clk 0:00:10]}  Ra1 {[%clk 0:00:04]} 75. h8=Q {[%clk 0:00:10]}  Ra7+ {[%clk 0:00:04]} 76. Kg6 {[%clk 0:00:11]} 1-0


[Site "https://www.chess.com"]